bitfinex/quotes_SOLUSD_20250929
["timestamp","ask_amount","ask_price","bid_price","bid_amount"]
[1759170751389,1e-08,210.37,210.36,33.42]
[1759170752096,1e-08,210.37,210.36,38.17375546]
[1759170752475,0.71000001,210.37,210.36,38.17375546]
[1759170752887,1e-08,210.37,210.36,38.17375546]
[1759170753087,1e-08,210.37,210.36,4.75375546]
[1759170753287,1e-08,210.37,210.36,38.19375546]
[1759170753694,1e-08,210.37,210.36,51.78934947]
[1759170753897,1e-08,210.37,210.36,52.48934947]
[1759170755291,1e-08,210.37,210.36,52.63151104]
[1759170756792,1e-08,210.38,210.37,0.14216157]
[1759170757108,1e-08,210.38,210.37,5.59569106]
[1759170757607,1e-08,210.39,210.37,19.19128507]
[1759170757905,1e-08,210.39,210.38,47.87775558]
[1759170759199,1e-08,210.39,210.38,52.63105912]
[1759170760894,1e-08,210.39,210.38,51.93105912]
[1759170761496,1e-08,210.39,210.38,18.34889755]
[1759170761699,1e-08,210.39,210.38,51.76889755]
[1759170763599,1e-08,210.39,210.38,52.61105912]
[1759170763807,1e-08,210.39,210.38,51.91105912]
[1759170766298,1e-08,210.39,210.38,52.61105912]
[1759170766509,1e-08,210.39,210.38,51.91105912]
[1759170767307,1e-08,210.39,210.38,52.61105912]
[1759170768213,1e-08,210.39,210.38,54.84129779]
[1759170768598,1e-08,210.39,210.38,54.14129779]
[1759170768919,1e-08,210.39,210.38,54.84129779]
[1759170769212,1e-08,210.39,210.38,54.14129779]
[1759170770213,1e-08,210.39,210.38,53.99779329]
[1759170773513,1e-08,210.39,210.38,54.68779329]
[1759170775016,0.2,210.44,210.42,13.59559401]
[1759170775216,1e-08,210.44,210.43,35.77240024]
[1759170775904,0.69000001,210.44,210.43,35.77240024]
[1759170777037,0.69000001,210.44,210.43,40.52457435]
[1759170777224,0.69000001,210.44,210.43,53.97800679]
[1759170777601,0.69000001,210.44,210.43,20.57800679]
[1759170777800,0.69000001,210.44,210.43,53.97800679]
[1759170778711,0.69000001,210.44,210.43,4.75217411]
[1759170778908,0.69000001,210.44,210.43,38.15217411]
[1759170780326,1e-08,210.44,210.43,38.15217411]
[1759170780523,1e-08,210.44,210.43,53.97800679]
[1759170780929,1e-08,210.47,210.46,39.73775558]
[1759170781130,1e-08,210.47,210.46,80.11949097]
[1759170781425,1e-08,210.47,210.46,80.80949097]
[1759170782207,1e-08,210.47,210.46,80.11949097]
[1759170782541,1e-08,210.47,210.46,77.74709073]
[1759170784726,0.79,210.49,210.46,77.74709073]
[1759170784901,0.1,210.5,210.46,77.74709073]
[1759170784902,0.1,210.5,210.46,89.62583253]
[1759170785308,0.1,210.5,210.46,42.63023852]
[1759170785615,0.1,210.5,210.46,4.75149672]
[1759170785815,0.1,210.5,210.47,33.4]
[1759170786907,0.69,210.49,210.47,38.15121302]
[1759170787108,0.69,210.48,210.47,38.15121302]
[1759170787315,0.1,210.5,210.47,38.15121302]
[1759170787514,0.69,210.48,210.47,38.15121302]
[1759170789307,0.69,210.48,210.47,4.75121302]
[1759170791344,0.1,210.5,210.47,16.62939043]
[1759170791540,0.69,210.49,210.48,33.4]
[1759170791912,0.1,210.5,210.48,33.4]
[1759170792622,0.1,210.5,210.48,34.09]
[1759170793331,0.1,210.5,210.49,4.75081951]
[1759170793721,0.1,210.5,210.49,19.03641352]
[1759170794018,1e-08,210.5,210.49,19.03641352]
[1759170794418,1e-08,210.5,210.49,18.34641352]
[1759170796619,1e-08,210.5,210.49,19.14857509]
[1759170798119,1e-08,210.5,210.49,18.48857509]
[1759170798329,1e-08,210.5,210.49,51.74641352]
[1759170798717,1e-08,210.5,210.49,52.54857509]
[1759170799836,1e-08,210.5,210.49,51.88857509]
[1759170801029,1e-08,210.5,210.49,52.54857509]
[1759170802340,1e-08,210.5,210.49,51.88857509]
[1759170802729,1e-08,210.5,210.49,52.58857509]
[1759170803048,0.67000001,210.5,210.49,51.88857509]
[1759170803226,1e-08,210.5,210.49,51.88857509]
[1759170803632,1e-08,210.5,210.49,52.58857509]
[1759170804518,1e-08,210.5,210.49,51.88857509]
[1759170805544,1e-08,210.51,210.5,2.37240024]
[1759170805732,1e-08,210.51,210.5,3.07240024]
[1759170807027,1e-08,210.51,210.5,33.12299406]
[1759170807336,1e-08,210.51,210.5,33.82299406]
[1759170807735,1e-08,210.51,210.5,47.41858807]
[1759170808934,1e-08,210.51,210.5,21.41858807]
[1759170809132,0.1,210.58,210.5,21.41858807]
[1759170809133,0.1,210.58,210.54,39.59559401]
[1759170809332,0.1,210.59,210.58,13.73775558]
[1759170809532,0.1,210.59,210.58,61.23136513]
[1759170809823,0.67,210.63,210.58,47.81775558]
[1759170810024,0.67,210.63,210.61,2.23023867]
[1759170810220,0.1,210.66,210.62,33.38]
[1759170810728,0.67,210.65,210.62,33.38]
[1759170810928,0.67,210.64,210.62,33.38]
[1759170811140,0.1,210.66,210.62,33.38]
[1759170811653,0.67,210.65,210.63,33.38]
[1759170811852,0.67,210.64,210.61,33.38]
[1759170812028,0.67,210.63,210.61,33.38]
[1759170812227,0.67,210.62,210.61,33.38]
[1759170812743,0.67,210.62,210.54,11.87414342]
[1759170812943,0.67,210.61,210.55,64.12946568]
[1759170813139,0.67,210.6,210.55,64.12946568]
[1759170813344,0.67,210.59,210.55,64.12946568]
[1759170813543,0.67,210.58,210.55,76.00312989]
[1759170813738,16.61523854,210.65,210.55,38.12946568]
[1759170813945,0.67,210.57,210.55,52.24651345]
[1759170814138,0.67,210.56,210.55,14.11704777]
[1759170814340,0.67,210.56,210.55,33.42]
[1759170815637,0.67,210.56,210.55,38.16946568]
[1759170816026,131.6,210.64,210.55,38.16946568]
[1759170816227,132.27,210.63,210.55,38.16946568]
[1759170816447,0.67,210.62,210.55,38.16946568]
[1759170816652,0.67,210.61,210.55,38.16946568]
[1759170816847,0.67,210.6,210.55,38.16946568]
[1759170817036,0.67,210.59,210.55,38.16946568]
[1759170817234,0.67,210.58,210.55,38.16946568]
[1759170817440,0.67,210.57,210.55,38.16946568]
[1759170817838,0.67,210.56,210.55,38.16946568]
[1759170818036,0.67,210.56,210.55,19.14911132]
[1759170818268,0.67,210.56,210.55,47.79964564]
[1759170819645,0.67,210.56,210.55,33.4]
[1759170822240,0.67,210.56,210.55,33.38]
[1759170823553,4.74837255,210.6,210.55,33.38]
[1759170823755,0.67,210.59,210.55,33.38]
[1759170824062,0.67,210.58,210.55,38.12937036]
[1759170824263,0.67,210.57,210.55,38.12937036]
[1759170825048,0.67,210.56,210.55,38.12937036]
[1759170826382,0.67,210.56,210.48,11.87708769]
[1759170826546,0.67,210.55,210.5,33.38]
[1759170826745,0.67,210.54,210.5,33.38]
[1759170826943,3.47569682,210.59,210.5,33.38]
[1759170826944,0.67,210.53,210.5,33.38]
[1759170827162,0.67,210.53,210.5,38.13058186]
[1759170827356,0.67,210.56,210.51,0.7]
[1759170827556,3.47569682,210.59,210.51,15.18803376]
[1759170827849,0.67,210.58,210.52,34.08]
[1759170828244,131.6,210.6,210.53,14.29559401]
[1759170828447,132.27,210.6,210.54,33.38]
[1759170828651,132.27,210.6,210.54,34.08]
[1759170829075,132.27,210.6,210.55,0.7]
[1759170829375,132.27,210.6,210.56,38.12924012]
[1759170829861,131.6,210.6,210.56,38.12924012]
[1759170830162,132.27,210.6,210.56,38.12924012]
[1759170830561,132.27,210.6,210.56,50.00234042]
[1759170830748,0.67,210.6,210.56,50.70234042]
[1759170830950,4.74766804,210.63,210.56,38.12924012]
[1759170831163,0.67,210.59,210.56,38.12924012]
[1759170831542,0.71,210.58,210.56,38.12924012]
[1759170831851,4.74766804,210.63,210.56,38.12924012]
[1759170831852,0.71,210.6,210.56,38.12924012]
[1759170832372,0.71,210.6,210.56,38.78924012]
[1759170834276,0.71,210.59,210.56,33.38]
[1759170834471,0.71,210.58,210.56,33.38]
[1759170834769,0.71,210.59,210.56,33.38]
[1759170836270,0.71,210.59,210.56,38.1291796]
[1759170836574,0.71,210.58,210.56,38.1291796]
[1759170836979,0.71,210.6,210.56,38.1291796]
[1759170837285,0.71,210.59,210.56,38.1291796]
[1759170837965,4.74766177,210.63,210.56,38.1291796]
[1759170838173,0.71,210.62,210.56,38.1291796]
[1759170838371,0.71,210.61,210.56,38.1291796]
[1759170838677,34.09,210.64,210.57,0.66]
[1759170839177,165.69,210.64,210.58,33.38]
[1759170839385,164.98,210.64,210.58,33.38]
[1759170839696,0.71,210.63,210.58,33.38]
[1759170839871,164.98,210.64,210.58,33.38]
[1759170840064,0.71,210.62,210.58,33.38]
[1759170840259,0.71,210.62,210.59,4.74856355]
[1759170840460,131.6,210.64,210.6,0.66]
[1759170840665,131.6,210.64,210.58,33.38]
[1759170840666,0.71,210.63,210.58,4.74877859]
[1759170840977,0.71,210.62,210.58,4.74877859]
[1759170841172,136.34747885,210.64,210.58,4.74877859]
[1759170841372,0.71,210.63,210.58,4.74877859]
[1759170841564,0.71,210.62,210.58,5.40877859]
[1759170842167,131.6,210.64,210.6,4.74833808]
[1759170842385,0.71,210.63,210.6,4.74833808]
[1759170842881,0.71,210.62,210.56,45.27278925]
[1759170843457,0.71,210.62,210.57,4.74901457]
[1759170843776,0.71,210.61,210.53,12.53423382]
[1759170843955,0.71,210.6,210.54,4.74969127]
[1759170844160,0.71,210.59,210.53,4.74991687]
[1759170844480,0.71,210.61,210.54,0.66]
[1759170844861,33.4,210.62,210.54,0.66]
[1759170845175,0.71,210.63,210.55,46.99559401]
[1759170845486,131.6,210.64,210.56,0.66]
[1759170845775,0.71,210.62,210.56,0.66]
[1759170845962,131.6,210.64,210.56,0.66]
[1759170846154,0.71,210.63,210.55,33.4]
[1759170846480,0.71,210.62,210.56,4.74924012]
[1759170846979,136.34745575,210.64,210.56,4.74924012]
[1759170847178,0.71,210.61,210.56,4.74924012]
[1759170847378,136.34745575,210.64,210.56,5.40924012]
[1759170847576,0.71,210.6,210.56,4.74924012]
[1759170847782,0.71,210.62,210.56,5.40924012]
[1759170848275,0.71,210.61,210.56,4.74924012]
[1759170848480,0.71,210.6,210.56,4.74924012]
[1759170849483,0.71,210.59,210.56,4.74924012]
[1759170850381,7.95063107,210.63,210.57,0.66]
[1759170850685,0.71,210.62,210.56,4.74924012]
[1759170850985,0.71,210.61,210.56,4.74924012]
[1759170851279,0.71,210.6,210.56,5.40924012]
[1759170851477,7.95063107,210.63,210.56,5.40924012]
[1759170851685,0.71,210.61,210.56,5.40924012]
[1759170851858,0.71,210.61,210.57,0.66]
[1759170852678,7.95064668,210.63,210.57,0.66]
[1759170852885,0.71,210.61,210.56,4.74924012]
[1759170853187,0.71,210.6,210.56,5.40924012]
[1759170855689,0.69,210.62,210.56,5.41924012]
[1759170856059,5.43791871,210.62,210.56,5.41924012]
[1759170856258,0.69,210.61,210.56,5.41924012]
[1759170858489,0.69,210.61,210.57,5.41884556]
[1759170859185,3.2029693,210.63,210.57,4.74884556]
[1759170859386,0.69,210.62,210.57,4.74884556]
[1759170859614,0.69,210.61,210.57,5.41884556]
[1759170859970,4.74789092,210.62,210.56,4.74922974]
[1759170860173,0.69,210.6,210.56,4.74922974]
[1759170860375,0.69,210.59,210.56,4.74922974]
[1759170860588,4.74789092,210.62,210.56,4.74922974]
[1759170860907,0.69,210.61,210.56,5.41922974]
[1759170861377,0.69,210.61,210.57,5.43891837]
[1759170862184,3.2029693,210.63,210.58,0.69]
[1759170862372,131.6,210.62,210.58,0.69]
[1759170863594,132.3,210.62,210.58,0.69]
[1759170864197,132.3,210.62,210.58,5.43868042]
[1759170865795,0.7,210.61,210.56,16.62221799]
[1759170865996,132.3,210.6,210.51,14.25474194]
[1759170866179,38.12822143,210.61,210.45,23.75844481]
[1759170866180,135.77569682,210.59,210.5,0.69]
[1759170866884,135.77569682,210.59,210.51,16.6261156]
[1759170867110,0.7,210.58,210.52,0.69]
[1759170868084,0.7,210.58,210.53,4.74991687]
[1759170868288,0.7,210.58,210.54,0.69]
[1759170869002,0.7,210.57,210.53,4.74991687]
[1759170869294,139.82428776,210.59,210.53,4.74991687]
[1759170869474,0.7,210.56,210.5,13.99191691]
[1759170869679,0.7,210.55,210.49,4.75081951]
[1759170869891,0.7,210.54,210.48,38.13099399]
[1759170870082,0.7,210.53,210.48,4.75099399]
[1759170870287,0.7,210.52,210.47,4.75127096]
[1759170870483,0.7,210.51,210.46,0.69]
[1759170870685,0.7,210.5,210.45,4.75153888]
[1759170870890,3.47569682,210.53,210.45,5.44153888]
[1759170871092,0.7,210.49,210.45,5.44153888]
[1759170871286,0.7,210.51,210.45,5.44153888]
[1759170871603,0.7,210.51,210.45,19.43249625]
[1759170871903,5.45039072,210.51,210.45,5.44153888]
[1759170874288,0.7,210.51,210.46,0.69]
[1759170874793,0.7,210.5,210.45,4.75153888]
[1759170874992,131.6,210.54,210.45,4.75153888]
[1759170874993,0.7,210.49,210.45,4.75153888]
[1759170875184,0.7,210.52,210.46,0.69]
[1759170875592,0.7,210.52,210.45,18.76324955]
[1759170875793,0.7,210.51,210.46,0.69]
[1759170876001,132.3,210.51,210.46,0.69]
[1759170876598,131.6,210.51,210.47,0.69]
[1759170876995,131.6,210.51,210.46,2.22905191]
[1759170877197,131.6,210.51,210.48,0.69]
[1759170878295,131.6,210.51,210.46,2.22905191]
[1759170878505,131.6,210.51,210.47,0.69]
[1759170878987,131.6,210.51,210.48,4.75104522]
[1759170882307,132.3,210.51,210.48,4.75104522]
[1759170882506,0.7,210.5,210.46,4.75149672]
[1759170882715,0.7,210.5,210.46,5.44149672]
[1759170883100,0.7,210.49,210.46,4.75149672]
[1759170883701,131.6,210.51,210.46,4.75149672]
[1759170883899,0.7,210.48,210.46,4.75149672]
[1759170884103,0.7,210.48,210.45,18.76342708]
[1759170884311,0.7,210.48,210.45,4.75171641]
[1759170884814,0.7,210.49,210.45,18.90545895]
[1759170885122,0.7,210.48,210.45,4.75171641]
[1759170885289,0.7,210.47,210.45,4.75171641]
[1759170885705,0.7,210.47,210.44,4.75191234]
[1759170886116,0.7,210.49,210.44,5.44191234]
[1759170886300,0.7,210.48,210.44,5.44191234]
[1759170886892,131.6,210.51,210.45,0.69]
[1759170888013,131.6,210.51,210.46,4.75149672]
[1759170888212,0.7,210.5,210.46,5.44149672]
[1759170889310,131.6,210.51,210.46,4.75149672]
[1759170889492,132.3,210.51,210.47,0.69]
[1759170889912,132.3,210.51,210.46,4.75149672]
[1759170889913,0.7,210.5,210.46,16.63023852]
[1759170890116,0.7,210.5,210.46,17.32023852]
[1759170891212,131.6,210.51,210.46,4.75149672]
[1759170891419,0.66,210.5,210.46,4.75149672]
[1759170891609,131.6,210.51,210.46,4.75149672]
[1759170891918,0.66,210.49,210.46,4.75149672]
[1759170893597,0.66,210.48,210.43,11.88011499]
[1759170893797,0.66,210.47,210.43,4.75217411]
[1759170894212,0.66,210.47,210.43,5.45217411]
[1759170894918,0.66,210.5,210.42,16.63334471]
[1759170895224,0.66,210.49,210.44,0.7]
[1759170895391,0.66,210.48,210.45,4.75172249]
[1759170895991,136.35041997,210.51,210.45,4.75172249]
[1759170896219,0.66,210.5,210.45,4.75172249]
[1759170896409,0.66,210.49,210.43,19.3298111]
[1759170896725,0.66,210.49,210.43,20.0298111]
[1759170897019,136.35041997,210.51,210.43,20.0298111]
[1759170897218,0.66,210.48,210.43,20.0298111]
[1759170897393,0.66,210.48,210.45,4.75172249]
[1759170897799,0.66,210.47,210.45,4.75172249]
[1759170898917,0.66,210.47,210.44,4.75194829]
[1759170899118,26.0,210.47,210.41,14.50063223]
[1759170899323,26.66,210.47,210.42,0.7]
[1759170899526,26.66,210.47,210.43,0.7]
[1759170899707,26.66,210.47,210.39,11.88259544]
[1759170899905,26.66,210.47,210.4,0.7]
[1759170900717,26.0,210.47,210.4,0.7]
[1759170900923,26.0,210.47,210.41,16.63419038]
[1759170901232,0.66,210.48,210.42,14.29559401]
[1759170901417,0.66,210.48,210.42,34.08]
[1759170902102,0.66,210.47,210.41,30.60067147]
[1759170902307,64.1306301,210.5,210.41,52.09910691]
[1759170902308,0.66,210.46,210.41,52.09910691]
[1759170902506,0.66,210.45,210.41,52.09910691]
[1759170902807,0.66,210.44,210.38,4.75325748]
[1759170903113,5.41225372,210.43,210.38,4.75325748]
[1759170903425,0.66,210.42,210.35,5.45384855]
[1759170903624,26.66,210.41,210.35,5.45384855]
[1759170904111,0.66,210.4,210.35,5.45384855]
[1759170904303,0.66,210.39,210.35,5.45384855]
[1759170904504,0.66,210.39,210.34,33.38]
[1759170904505,0.66,210.38,210.34,38.13419673]
[1759170904715,0.66,210.37,210.34,38.13419673]
[1759170905121,30.75264756,210.41,210.34,38.13419673]
[1759170905122,0.66,210.39,210.34,38.83419673]
[1759170905325,26.66,210.41,210.35,0.7]
[1759170906611,26.66,210.41,210.36,4.75375546]
[1759170906810,26.66,210.41,210.36,5.45375546]
[1759170908532,26.0,210.41,210.38,4.75330354]
[1759170908719,26.66,210.41,210.38,4.75330354]
[1759170908918,0.66,210.4,210.35,18.87569457]
[1759170909121,0.66,210.39,210.33,0.2]
[1759170910522,4.75330354,210.38,210.33,0.2]
[1759170910828,26.66,210.37,210.33,0.2]
[1759170911229,26.0,210.35,210.33,0.2]
[1759170911608,28.88905191,210.34,210.33,0.2]
[1759170911812,28.88905191,210.34,210.32,0.2]
[1759170912026,13.59559401,210.32,210.3,0.2]
[1759170912239,35.77121348,210.31,210.3,0.2]
[1759170912450,36.43121348,210.31,210.3,0.2]
[1759170912738,41.18609912,210.31,210.3,0.2]
[1759170913117,26.66,210.33,210.3,0.2]
[1759170913330,0.66,210.31,210.3,0.2]
[1759170914238,16.62680749,210.31,210.3,0.2]
[1759170914715,21.38169313,210.31,210.3,0.2]
[1759170915316,26.0,210.28,210.24,0.2]
[1759170915516,2.22905191,210.26,210.24,0.2]
[1759170915940,0.72,210.25,210.24,0.2]
[1759170916819,5.47624256,210.25,210.24,0.2]
[1759170918326,0.72,210.25,210.24,0.2]
[1759170918534,1.90835142,210.26,210.24,0.2]
[1759170918734,0.72,210.25,210.24,0.2]
[1759170919342,60.14,210.25,210.24,0.2]
[1759170919957,64.89624256,210.25,210.24,0.2]
[1759170922341,53.35240561,210.25,210.24,0.2]
[1759170923021,53.21024404,210.25,210.24,0.2]
[1759170923541,14.31400148,210.25,210.24,0.2]
[1759170923744,33.42,210.25,210.24,0.2]
[1759170923925,34.1,210.25,210.24,0.2]
[1759170924327,33.42,210.25,210.24,0.2]
[1759170925958,38.99840413,210.25,210.24,0.2]
[1759170926252,57.35136197,210.25,210.24,0.2]
[1759170927760,59.58041388,210.25,210.24,0.2]
[1759170928534,52.16041388,210.25,210.24,0.2]
[1759170928741,59.58041388,210.25,210.24,0.2]
[1759170928933,45.30481987,210.25,210.24,0.2]
[1759170929429,37.7426583,210.25,210.24,0.2]
[1759170929653,45.1626583,210.25,210.24,0.2]
[1759170929954,45.98481987,210.25,210.24,0.2]
[1759170930828,9.51360639,210.25,210.24,0.2]
[1759170931043,42.93360639,210.25,210.24,0.2]
[1759170931540,26.0,210.26,210.24,0.2]
[1759170931746,4.75753122,210.28,210.24,0.85]
[1759170931962,33.42,210.27,210.24,0.85]
[1759170932161,4.75576901,210.28,210.25,0.65]
[1759170932339,26.0,210.25,210.24,0.2]
[1759170932541,59.42,210.25,210.24,0.2]
[1759170932767,59.42,210.25,210.24,0.85]
[1759170932948,33.42,210.26,210.24,0.85]
[1759170933140,33.42,210.26,210.25,0.65]
[1759170933461,26.0,210.28,210.25,0.65]
[1759170933657,26.0,210.28,210.24,4.95646173]
[1759170933658,26.0,210.25,210.24,0.2]
[1759170934257,26.0,210.25,210.24,5.60646879]
[1759170934462,4.75465956,210.32,210.24,5.60646879]
[1759170934646,0.68,210.33,210.25,0.65]
[1759170934647,33.42,210.31,210.25,0.65]
[1759170934964,0.68,210.36,210.25,0.65]
[1759170935151,34.1,210.35,210.25,0.65]
[1759170935341,26.0,210.32,210.25,0.65]
[1759170935541,33.42,210.31,210.25,0.65]
[1759170935966,38.17489248,210.31,210.25,5.40613797]
[1759170936170,26.0,210.3,210.26,0.65]
[1759170936972,33.42,210.31,210.26,0.65]
[1759170937183,33.42,210.31,210.27,0.65]
[1759170937959,59.42,210.32,210.28,4.755564]
[1759170938164,59.42,210.32,210.29,0.65]
[1759170938366,12.56293191,210.39,210.29,0.65]
[1759170938579,26.0,210.35,210.29,0.65]
[1759170938765,59.42,210.35,210.29,0.65]
[1759170939353,59.42,210.35,210.3,4.75511174]
[1759170939553,59.42,210.35,210.31,0.65]
[1759170939978,26.0,210.32,210.28,4.75552753]
[1759170940162,26.0,210.32,210.29,0.65]
[1759170940361,26.0,210.32,210.3,0.65]
[1759170940567,26.0,210.32,210.31,0.65]
[1759170940971,26.0,210.32,210.28,5.40552753]
[1759170941276,26.0,210.32,210.26,5.40601636]
[1759170941277,0.68,210.31,210.26,5.40601636]
[1759170941449,59.42,210.32,210.29,0.65]
[1759170941654,60.1,210.32,210.27,5.40567561]
[1759170941850,0.68,210.31,210.24,0.85]
[1759170942055,67.66494449,210.32,210.24,0.85]
[1759170942056,0.68,210.3,210.24,0.85]
[1759170942359,4.75446248,210.33,210.25,0.65]
[1759170942573,33.44,210.32,210.25,0.65]
[1759170943587,38.19467725,210.32,210.26,4.75601636]
[1759170943768,0.68,210.31,210.25,0.65]
[1759170943967,26.0,210.29,210.24,4.95626595]
[1759170944155,60.12,210.29,210.24,4.95626595]
[1759170944355,60.12,210.29,210.25,0.65]
[1759170944602,59.44,210.29,210.26,0.65]
[1759170944880,26.0,210.28,210.27,0.65]
[1759170945589,33.46,210.3,210.27,5.40579017]
[1759170945886,0.68,210.32,210.27,5.40579017]
[1759170945887,26.0,210.29,210.28,0.65]
[1759170946678,5.43377235,210.36,210.28,0.65]
[1759170946895,0.68,210.36,210.28,0.65]
[1759170947104,3.49025948,210.38,210.29,13.73775558]
[1759170947105,33.46,210.38,210.29,13.73775558]
[1759170947294,33.46,210.38,210.3,0.65]
[1759170947476,26.0,210.35,210.31,16.64209975]
[1759170947795,26.0,210.35,210.32,0.65]
[1759170948005,0.68,210.4,210.32,0.65]
[1759170948291,33.46,210.41,210.33,13.59559401]
[1759170948470,33.46,210.42,210.34,0.65]
[1759170948670,26.0,210.39,210.34,0.65]
[1759170949193,26.0,210.39,210.35,4.75398145]
[1759170949386,26.0,210.39,210.36,0.65]
[1759170950489,0.68,210.38,210.34,4.75418576]
[1759170950995,26.0,210.39,210.35,0.65]
[1759170951194,26.0,210.4,210.36,4.75364646]
[1759170951495,26.0,210.39,210.37,0.66]
[1759170951680,26.0,210.39,210.36,4.75364646]
[1759170952186,26.0,210.39,210.37,0.66]
[1759170953372,26.0,210.39,210.38,4.75330354]
[1759170955602,26.0,210.39,210.36,4.75365969]
[1759170955800,26.0,210.39,210.35,14.00618036]
[1759170955981,0.67,210.38,210.34,5.41398281]
[1759170956188,26.0,210.39,210.35,0.66]
[1759170957212,26.0,210.39,210.36,0.66]
[1759170957893,26.0,210.39,210.36,5.41354992]
[1759170958198,26.0,210.39,210.36,4.75354992]
[1759170958383,26.0,210.39,210.37,0.66]
[1759170958702,26.0,210.39,210.36,4.75354992]
[1759170958898,26.0,210.39,210.36,5.41354992]
[1759170959682,26.0,210.39,210.36,4.75354992]
[1759170959683,0.67,210.38,210.36,4.75354992]
[1759170959879,26.0,210.39,210.36,4.75354992]
[1759170960384,26.0,210.39,210.36,5.41354992]
[1759170961092,131.6,210.42,210.36,4.75354992]
[1759170961296,131.6,210.42,210.37,0.66]
[1759170961481,131.6,210.42,210.38,0.66]
[1759170961809,132.27,210.42,210.38,0.66]
[1759170962010,132.27,210.42,210.36,16.63793858]
[1759170962307,132.27,210.42,210.36,17.29793858]
[1759170964084,132.27,210.42,210.36,16.63793858]
[1759170964405,132.27,210.42,210.37,0.66]
[1759170964799,0.67,210.41,210.37,0.66]
[1759170965399,131.6,210.42,210.37,0.66]
[1759170965711,131.6,210.42,210.38,0.66]
[1759170965911,132.27,210.42,210.38,0.66]
[1759170966095,0.67,210.41,210.36,17.29793858]
[1759170966297,131.6,210.42,210.37,0.66]
[1759170966505,132.27,210.42,210.37,0.66]
[1759170966686,0.67,210.41,210.37,0.66]
[1759170967085,0.67,210.41,210.38,4.75330354]
[1759170968108,0.67,210.4,210.38,4.75330354]
[1759170968490,131.6,210.42,210.38,4.75330354]
[1759170968693,132.27,210.42,210.38,4.75330354]
[1759170969110,131.6,210.42,210.38,4.75330354]
[1759170969303,0.67,210.41,210.37,16.63735322]
[1759170969512,0.67,210.41,210.37,17.29735322]
[1759170970191,131.6,210.42,210.38,0.66]
[1759170970418,131.6,210.42,210.39,0.66]
[1759170970607,4.75129164,210.47,210.39,0.66]
[1759170970608,131.6,210.47,210.39,0.66]
[1759170970811,0.67,210.46,210.38,13.59559401]
[1759170971123,0.67,210.45,210.38,14.25559401]
[1759170971321,0.67,210.45,210.39,16.63577165]
[1759170972098,4.75151519,210.46,210.39,16.63577165]
[1759170972298,0.67,210.44,210.39,16.63577165]
[1759170972512,0.67,210.44,210.4,0.66]
[1759170973017,0.67,210.46,210.39,16.63577165]
[1759170973219,0.67,210.46,210.41,0.66]
[1759170973420,191.0,210.47,210.42,4.75239996]
[1759170973628,0.67,210.46,210.42,4.75239996]
[1759170974809,191.0,210.47,210.42,4.75239996]
[1759170975013,0.71,210.45,210.42,4.75239996]
[1759170975229,0.71,210.44,210.42,4.75239996]
[1759170975527,0.71,210.43,210.38,12.58293787]
[1759170975705,0.71,210.45,210.39,0.7]
[1759170976007,0.71,210.45,210.39,17.33577165]